[Event "7th Sharjah Challengers 2024"]
[Site "Sharjah"]
[Date "2024.05.21"]
[Round "8.7"]
[White "Aradhya, Garg"]
[Black "Mohammad Fahad, Rahman"]
[Result "1/2-1/2"]
[ECO "B13"]
[WhiteElo "2388"]
[BlackElo "2435"]
[Annotator "TA"]
[PlyCount "72"]
[EventDate "2024.05.13"]
[EventType "swiss"]
[EventCountry "UAE"]
[SourceTitle "playchess.com"]
[Source "ChessBase"]
[SourceQuality "1"]
[TimeControl "5400+30"]

{[%evp 20,72,17,13,22,19,20,0,0,0,24,24,26,17,19,20,13,0,0,0,1,0,0,0,0,-12,0,-10,9,0,77,85,91,92,94,92,100,94,92,87,81,0,3,0,93,0,0,0,87,82,116,112,187,162,164]} 1. d4 {[%emt 0:00:02]} d5 {[%emt 0:00:21]} 2. Nf3 {[%emt 0:00:02]} Nf6 {[%emt 0:00:15]} 3. Bf4 {[%emt 0:00:03]} c5 {[%emt 0:01:50]} 4. e3 {[%emt 0:00:01]} Nc6 {[%emt 0:00:07]} 5. Nbd2 {[%emt 0:00:03]} cxd4 {[%emt 0:05:13]} 6. exd4 {[%emt 0:00:05]} Bg4 {[%emt 0:09:47]} 7. c3 {[%emt 0:01:33]} e6 {[%emt 0:00:38]} 8. Bd3 {[%emt 0:01:13]} Bd6 {[%emt 0:00:53]} 9. Bxd6 {[%emt 0:00:09]} Qxd6 {[%emt 0:00:01]} 10. O-O {[%emt 0:00:12]} O-O {[%emt 0:00:24]} 11. Re1 {[%emt 0:00:24]} Rab8 {[%emt 0:01:48]} 12. a4 {[%emt 0:00:13]} Qc7 {[%emt 0:00:46]} 13. Qe2 {[%emt 0:03:52]} Rfe8 {[%emt 0:01:44] The position is equal.} 14. Qe3 {[%emt 0:00:14] Dodges e5} Bxf3 {[%emt 0:08:13]} 15. Nxf3 {[%emt 0:00:09]} a6 {[%emt 0:00:11]} 16. Re2 {[%emt 0:05:24]} Nd7 {[%emt 0:07:22]} 17. Rae1 {[%emt 0:02:16]} Na5 {[%emt 0:09:56]} 18. h4 {[%emt 0:08:14]} Nc4 {[%emt 0:03:35]} 19. Qc1 {[%emt 0:00:04]} b5 {[%emt 0:01:38]} 20. axb5 {[%emt 0:09:15]} axb5 {[%emt 0:00:03]} 21. b3 {[%emt 0:14:31]} Na5 {[%emt 0:02:15]} 22. Re3 {[%emt 0:18:21]} Nf8 {[%emt 0:12:22]} 23. Qa3 {[%emt 0:00:41]} Nc6 {[%emt 0:01:26][%cal Ba5c6,Bc6d8,Bd8f7,Bf7d6][%mdl 32]} 24. b4 {[%emt 0:00:48]} f6 {[%emt 0:01:10]} (24... Nd7 $11) 25. Qa2 {[%emt 0:00:53]} Nd8 {[%emt 0:03:57]} 26. Nd2 {[%emt 0:00:13][%cal Bf3d2,Bd2b3,Bb3c5][%mdl 32]} Nf7 {[%emt 0:01:42][%cal Oc7d7]} 27. Nb3 {[%emt 0:00:08]} e5 {[%emt 0:01:18]} 28. Nc5 {[%emt 0:00:26]} Qc6 {[%emt 0:00:10]} 29. dxe5 {[%emt 0:03:03] White has more active pieces.} fxe5 {[%emt 0:01:05]} 30. Bf5 {[%emt 0:03:53]} (30. Rd1 $16 {Strongly threatening Bc2.} Red8 31. Bf5) 30... Nd6 $1 $11 {[%emt 0:25:20]} 31. Bd3 {[%emt 0:02:29]} ({Much weaker is} 31. Rxe5 Nxf5 32. Rxe8 Rxe8 $17) (31. Bh3 $11 Ra8 32. Qe2) 31... Nf7 $1 $16 {[%emt 0:00:00]} 32. Bf5 {[%emt 0:01:08]} (32. Rd1 $16 {Hoping for Bc2.} Red8 33. Bf5) 32... Nd6 $1 $11 {[%emt 0:00:00]} 33. Bd3 {[%emt 0:26:58]} ({Reject} 33. Rxe5 Nxf5 34. Rxe8 Rxe8 $17) 33... Ra8 {[%emt 0:01:30]} (33... Nf7 $1 $11) 34. Qb3 $16 {[%emt 0:00:30]} Nc4 {[%emt 0:00:30]} 35. Bxc4 bxc4 (35... dxc4 $16 {was called for.} 36. Qd1 Kh8) 36. Qd1 $18 e4 {[%emt 0:01:00] Weighted Error Value: White=0.11 (very precise) /Black=0.14 (very precise) .  Mistake:       	White=3     	Black=3      Inaccurate:     	---       	Black=1      OK:         	White=10    	Black=7      Best:        	White=2     	Black=1      Strong:       	---       	Black=3} 1/2-1/2

[Event "7th Sharjah Challengers 2024"]
[Site "Sharjah"]
[Date "2024.05.21"]
[Round "8.8"]
[White "Liyanage, Ranindu Dilshan"]
[Black "Suyarov, Mukhammadzokhid"]
[Result "1/2-1/2"]
[ECO "E05"]
[WhiteElo "2362"]
[BlackElo "2431"]
[Annotator "TA"]
[PlyCount "115"]
[EventDate "2024.05.13"]
[EventType "swiss"]
[EventCountry "UAE"]
[SourceTitle "playchess.com"]
[Source "ChessBase"]
[SourceQuality "1"]
[TimeControl "5400+30"]

{[%evp 58,115,267,59,68,70,73,74,639,293,310,0,0,0,0,0,0,0,0,0,0,0,0,0,0,0,0,0,532,376,29974,207,183,169,191,7,0,0,0,0,0,0,0,0,0,0,0,0,0,0,0,0,0,0,0,0,0,0,0,0]} 1. d4 {[%emt 0:00:14]} d5 {[%emt 0:01:01]} 2. c4 {[%emt 0:00:16]} e6 {[%emt 0:00:18]} 3. Nf3 {[%emt 0:00:15]} Nf6 {[%emt 0:00:18]} 4. g3 {[%emt 0:00:14]} Be7 {[%emt 0:00:37]} 5. Bg2 {[%emt 0:00:11]} O-O {[%emt 0:00:20]} 6. O-O {[%emt 0:00:09]} dxc4 {[%emt 0:00:16]} 7. Qc2 {[%emt 0:00:09]} a6 {[%emt 0:00:26]} 8. a4 {[%emt 0:00:10]} Bd7 {[%emt 0:00:20]} 9. Rd1 {[%emt 0:00:20]} Bc6 {[%emt 0:00:26]} 10. Nc3 {[%emt 0:00:18]} Bxf3 {[%emt 0:00:33]} 11. Bxf3 {[%emt 0:00:08]} Nc6 {[%emt 0:00:10]} 12. Bxc6 {[%emt 0:00:43]} bxc6 {[%emt 0:00:15]} 13. a5 {[%emt 0:00:13]} Rb8 {[%emt 0:01:37]} 14. Ra4 {[%emt 0:00:12]} Rb4 {[%emt 0:05:04]} 15. Na2 {[%emt 0:00:33]} Rxa4 {[%emt 0:02:13]} 16. Qxa4 {[%emt 0:00:46]} Qb8 {[%emt 0:00:28]} 17. Qxc4 {[%emt 0:00:36]} Qb7 {[%emt 0:12:02]} 18. b4 {[%emt 0:06:15]} Rb8 {[%emt 0:06:16]} 19. Bd2 {[%emt 0:05:53]} Ne4 {[%emt 0:00:27]} 20. Bf4 {[%emt 0:16:39]} Nd6 {[%emt 0:01:57]} 21. Qc2 {[%emt 0:01:44]} Nb5 {[%emt 0:02:29]} 22. h4 {[%emt 0:10:46]} Rd8 {[%emt 0:06:21]} 23. e3 {[%emt 0:00:49]} Bd6 {[%emt 0:01:32]} 24. Rc1 {[%emt 0:07:27]} Bxf4 {[%emt 0:04:02]} 25. gxf4 {[%emt 0:00:17]} Rd6 {[%emt 0:00:14]} 26. Nc3 {[%emt 0:03:27]} Nxc3 {[%emt 0:00:51]} 27. Qxc3 {[%emt 0:00:06]} Qb5 {[%emt 0:01:17]} 28. Qc4 {[%emt 0:03:47]} Qh5 {[%emt 0:04:41]} 29. Qxa6 {[%emt 0:02:40]} h6 {[%emt 0:00:17]} 30. Qc8+ $2 {[%emt 0:05:35]} (30. Rxc6 Qg4+ 31. Kh2 Qxh4+ 32. Kg2 Qg4+ 33. Kh2 Qh4+ 34. Kg2 Qg4+ 35. Kh2 Qh5+ 36. Kg1 (36. Kg3 Qg6+ 37. Kh2 Qh5+ 38. Kg1 Qf3 $11) 36... Qg4+ 37. Kf1 Qd1+ 38. Kg2 Qg4+ $11) (30. Qc4 $18) 30... Kh7 $14 {[%emt 0:00:26]} 31. Qxc7 {[%emt 0:00:15]} Qg6+ $1 {[%emt 0:01:30]} 32. Kf1 {[%emt 0:06:33]} (32. Kh2 e5 33. a6 (33. fxe5 Qf5 $11) (33. dxe5 Rd2 $11) 33... Qf6 $18) 32... e5 $2 {[%emt 0:00:25][%mdl 8192]} (32... Qd3+ $16 33. Kg2 Qg6+ 34. Kf1 (34. Kh2 e5 $18) 34... Qd3+ 35. Kg2 Qg6+ 36. Kh2 e5) 33. f5 {[%emt 0:00:33]} (33. dxe5 Qd3+ 34. Kg2 Rg6+ 35. Kf3 Qd5+ 36. Ke2 Qa2+ 37. Kf3 Qd5+ 38. Ke2 Qa2+ 39. Kf3 Qd5+ $11) (33. h5 $142 Qd3+ 34. Kg1) 33... Qf6 $18 {[%emt 0:00:59] [#]} 34. d5 $2 {[%emt 0:23:56]} ({White has to play} 34. dxe5 $1 $18 Qxe5 35. Qxf7 (35. Rxc6 Rd1+ 36. Ke2 Qd5 $17)) 34... cxd5 $11 {[%emt 0:01:30]} 35. b5 {[%emt 0:01:31]} d4 $1 {[%emt 0:00:15]} 36. Rc6 {[%emt 0:01:36]} dxe3 {[%emt 0:00:35]} 37. Qxd6 {[%emt 0:02:43]} Qxf5 {[%emt 0:00:23]} 38. Rc2 {[%emt 0:00:18]} Qxc2 {[%emt 0:00:38]} 39. fxe3 {[%emt 0:00:04]} Qb1+ {[%emt 0:00:53]} 40. Ke2 {[%emt 0:00:59]} e4 $1 {[%emt 0:01:04]} (40... Qxb5+ $2 41. Qd3+ Qxd3+ 42. Kxd3 $18) 41. b6 {[%emt 0:00:49]} Qb5+ {[%emt 0:00:02]} 42. Kf2 {[%emt 0:00:25]} Qf5+ $2 {[%emt 0:00:10][%mdl 8192]} (42... Qxa5 $11 {and Black is okay.} 43. b7 Qa2+ 44. Kg3 Qa7) 43. Qf4 $18 {[%emt 0:00:27]} Qxa5 $2 {[%emt 0:00:05] [#]} (43... Qd5 $18 44. a6 Qa2+ 45. Kg3 Qxa6) 44. Qxe4+ $2 {[%emt 0:00:20]} ({Stronger than} 44. Qxf7 Qxb6 45. Qf5+ Qg6 $11) (44. b7 $1 {mates} Qd2+ 45. Kg3 Qe1+ 46. Qf2 Qb1 47. Qf5+ (47. Qxf7 Qg1+ 48. Kf4 Qf1+ 49. Kxe4 Qxf7 $11) 47... Kh8 48. Qc8+ (48. Qxf7 Qg1+ 49. Kf4 Qf1+ 50. Kxe4 Qxf7 $11) 48... Kh7 49. b8=Q (49. b8=B Qe1+ 50. Kf4 Qxh4+ 51. Ke5 Qh2+ 52. Kxe4 Qh1+ 53. Kf4 Qg2 $11) 49... Qe1+ 50. Kg4 h5+ 51. Kf5 (51. Kxh5 Qe2+ 52. Kg5 Qxe3+ 53. Qf4 f6+ 54. Kg4 Qg1+ 55. Kf5 Qg2) 51... Qf1+ 52. Ke5 (52. Kxe4 Qh1+ 53. Ke5 Qh2+ 54. Kd5 Qg2+ 55. Kd6 Qg6+ 56. Ke7 Qf6+ 57. Kf8 Qh6) 52... Qa1+ 53. Kd6 (53. Kxe4 Qh1+ 54. Ke5 Qh2+ 55. Kd5 Qa2+ 56. Kd6 Qd2+ 57. Kc6 Qg2+ 58. Kd7 Qh3+ 59. Kd8 Qxh4+ 60. Ke8 Qe4+ 61. Kf8 Kh6) 53... Qf6+ 54. Kd5) 44... f5 $18 {[%emt 0:00:04]} 45. Qd4 {[%emt 0:00:15]} Qb5 {[%emt 0:00:33] [#]} 46. Ke1 $2 {[%emt 0:00:20]} (46. e4 $1 $18) 46... Kg6 $1 $11 {[%emt 0:00:39]} 47. Kd2 {[%emt 0:00:41]} Kh5 {[%emt 0:01:44]} 48. Kc3 {[%emt 0:00:30]} g5 $1 {[%emt 0:00:15]} 49. hxg5 {[%emt 0:00:15]} hxg5 {[%emt 0:00:03]} 50. Qb4 {[%emt 0:00:55]} Qc6+ {[%emt 0:00:22]} 51. Kb2 {[%emt 0:00:33]} Qg2+ {[%emt 0:00:25]} 52. Kc3 {[%emt 0:00:26]} Qc6+ {[%emt 0:00:40]} 53. Kb3 {[%emt 0:00:15]} Qe6+ {[%emt 0:00:34]} 54. Kb2 {[%emt 0:00:38]} Qxe3 {[%emt 0:00:55]} 55. b7 {[%emt 0:00:05]} Qe2+ {[%emt 0:00:11]} 56. Kc1 {[%emt 0:00:27]} Qe3+ {[%emt 0:01:07]} 57. Kc2 {[%emt 0:00:23]} Qe2+ {[%emt 0:00:10]} 58. Kc1 {[%emt 0:01:20]} 1/2-1/2

[Event "7th Sharjah Challengers 2024"]
[Site "Sharjah"]
[Date "2024.05.21"]
[Round "8.9"]
[White "Daksh Jain"]
[Black "Nofal, Mohamed"]
[Result "1/2-1/2"]
[ECO "B13"]
[WhiteElo "2101"]
[BlackElo "1962"]
[Annotator "RC"]
[PlyCount "67"]
[EventDate "2024.05.13"]
[EventType "swiss"]
[EventCountry "UAE"]
[SourceTitle "playchess.com"]
[Source "ChessBase"]
[SourceQuality "1"]
[TimeControl "5400+30"]

1. e4 {[%emt 0:00:20]} c6 {[%emt 0:00:18]} 2. d4 {[%emt 0:00:12]} d5 {[%emt 0:00:06]} 3. exd5 {[%emt 0:00:06]} cxd5 {[%emt 0:00:02]} 4. Bd3 {[%emt 0:00:10]} Nc6 {[%emt 0:00:06]} 5. c3 {[%emt 0:02:04]} Nf6 {[%emt 0:00:08]} 6. Bf4 {[%emt 0:00:11]} Bg4 {[%emt 0:00:08]} 7. Qb3 {[%emt 0:00:04]} Qd7 {[%emt 0:00:07]} 8. Nd2 {[%emt 0:00:34]} e6 {[%emt 0:00:04]} 9. Ngf3 {[%emt 0:00:06]} Bd6 {[%emt 0:00:10]} 10. Bxd6 {[%emt 0:00:41]} Qxd6 {[%emt 0:00:01]} 11. O-O {[%emt 0:00:11]} O-O {[%emt 0:00:09]} 12. Rae1 {[%emt 0:00:12]} Ne7 {[%emt 0:03:01]} 13. Ne5 {[%emt 0:01:44]} Bf5 {[%emt 0:05:15]} 14. Qc2 {[%emt 0:01:11]} Bxd3 {[%emt 0:00:12]} 15. Qxd3 {[%emt 0:00:08]} Rab8 {[%emt 1:28:13]} 16. f4 {[%emt 0:06:05]} b5 {[%emt 0:00:00]} 17. a3 {[%emt 0:05:44]} a5 {[%emt 0:00:00]} 18. b4 {[%emt 0:00:12]} Qc7 {[%emt 0:00:00]} 19. g4 {[%emt 0:03:19]} a4 {[%emt 0:00:00]} 20. Re3 {[%emt 0:02:00]} Ne8 {[%emt 0:00:00]} 21. Rh3 {[%emt 0:01:43]} f5 {[%emt 0:00:00]} 22. g5 {[%emt 0:08:14]} Nd6 {[%emt 0:00:00]} 23. Qg3 {[%emt 0:02:27]} Ng6 {[%emt 0:00:00]} 24. Nxg6 {[%emt 0:34:50]} hxg6 {[%emt 0:00:00]} 25. Nf3 {[%emt 0:00:55]} Nc4 {[%emt 0:00:00]} 26. Rh4 {[%emt 0:03:33]} Kf7 {[%emt 0:00:00]} 27. Qh3 {[%emt 0:01:17]} Qc8 {[%emt 0:00:00]} 28. Ne5+ {[%emt 0:18:10]} Nxe5 {[%emt 0:00:00]} 29. fxe5 {[%emt 0:00:13]} Rh8 {[%emt 0:00:00]} 30. Rxh8 {[%emt 0:02:51]} Qxh8 {[%emt 0:00:00]} 31. Qxh8 {[%emt 0:04:17]} Rxh8 {[%emt 0:00:00]} 32. Rf3 {[%emt 0:00:37]} Rh4 {[%emt 0:00:00]} 33. h3 {[%emt 0:00:22]} Re4 {[%emt 0:00:00]} 34. Kf2 {[%emt 0:00:07]} 1/2-1/2

[Event "7th Sharjah Challengers 2024"]
[Site "Sharjah"]
[Date "2024.05.21"]
[Round "8.10"]
[White "Baranciuc, Alexandr"]
[Black "Pang, Tao"]
[Result "1/2-1/2"]
[ECO "C19"]
[WhiteElo "2333"]
[BlackElo "2496"]
[Annotator "TA"]
[PlyCount "63"]
[EventDate "2024.05.13"]
[EventType "swiss"]
[EventCountry "UAE"]
[SourceTitle "playchess.com"]
[Source "ChessBase"]
[SourceQuality "1"]
[TimeControl "5400+30"]

{[%evp 13,63,0,0,-8,52,57,72,64,56,39,66,22,31,18,17,0,150,0,18,0,0,0,0,0,0,0,35,0,44,44,58,43,44,26,37,25,27,37,39,16,20,0,39,16,16,0,0,0,25,25,25,25]} 1. e4 {[%emt 0:00:08]} e6 {[%emt 0:00:11]} 2. d4 {[%emt 0:00:07]} d5 {[%emt 0:00:02]} 3. Nc3 {[%emt 0:00:12]} Bb4 {[%emt 0:00:13]} 4. e5 {[%emt 0:00:08]} c5 {[%emt 0:00:09]} 5. a3 {[%emt 0:00:33]} Bxc3+ {[%emt 0:00:07]} 6. bxc3 {[%emt 0:00:01]} Ne7 {[%emt 0:00:43]} 7. a4 {[%emt 0:00:13]} b6 {[%emt 0:14:26]} 8. Bb5+ {[%emt 0:00:50]} Kf8 {[%emt 0:00:45]} (8... Bd7 $11) 9. Ba3 $14 {[%emt 0:10:24]} c4 {[%emt 0:08:29] [#] White must now prevent ...a6.} 10. a5 $1 {[%emt 0:00:30] Black is weak on the dark squares. White is better.} bxa5 {[%emt 0:00:36]} 11. Qf3 {[%emt 0:06:53]} Ba6 $1 {[%emt 0:06:45]} 12. Bxa6 {[%emt 0:04:43]} (12. Nh3 $5 Kg8 (12... Bxb5 $2 {loses.} 13. Ng5 $18) 13. Ng5 $11) 12... Nxa6 {[%emt 0:00:05]} 13. Nh3 {[%emt 0:00:08] Ng5 would now be deadly.} Kg8 {[%emt 0:01:50]} 14. Kd2 {[%emt 0:03:47][%mdl 1024] White has compensation.} (14. Bxe7 {simplifies} Qxe7 15. Qg3 g6 16. Rxa5 Nc7 17. f4) 14... Rb8 {[%emt 0:13:25] [#]} (14... Nf5 $11) 15. Rhg1 {[%emt 0:17:17] White is much more active. The black rooks are passive.} (15. Bxe7 $1 $16 Qxe7 16. Rxa5) 15... Ng6 {[%emt 0:02:29]} 16. g4 {[%emt 0:02:12][%cal Bg2g4,Bg4g5][%mdl 32]} h6 {[%emt 0:03:39][%cal Bh7h6,Bh6h5][%mdl 32]} 17. Qe3 {[%emt 0:05:32]} h5 {[%emt 0:03:50]} 18. Nf4 {[%emt 0:06:06]} Nxf4 {[%emt 0:02:47]} 19. Qxf4 {[%emt 0:00:01]} Nc7 {[%emt 0:02:56]} 20. Bd6 {[%emt 0:04:02] gxh5 is the strong threat.} g6 {[%emt 0:04:00]} (20... Rb7 $5) 21. g5 {[%emt 0:03:55][%cal Og1b1]} Rb7 {[%emt 0:13:26]} 22. Rxa5 {[%emt 0:00:31]} Nb5 {[%emt 0:02:02]} 23. Bb4 {[%emt 0:00:39]} Qd7 {[%emt 0:01:02]} 24. Bc5 {[%emt 0:03:55]} (24. Rga1 {feels hotter.} Kg7 25. Bc5 Rc8 26. Qf3) 24... Kh7 {[%emt 0:00:27]} 25. Rga1 {[%emt 0:02:48]} Ra8 {[%emt 0:00:56]} 26. Ra6 {[%emt 0:01:54]} Kg8 {[%emt 0:00:33]} 27. Qe3 {[%emt 0:01:18]} Rc8 {[%emt 0:00:24]} 28. f4 {[%emt 0:01:16]} Rc6 {[%emt 0:00:34]} 29. Qe1 {[%emt 0:00:47]} Rxa6 {[%emt 0:02:52]} 30. Rxa6 {[%emt 0:00:02][%cal Of4f5]} Nc7 {[%emt 0:03:03]} 31. Rxa7 {[%emt 0:01:59]} Rxa7 {[%emt 0:00:09]} 32. Bxa7 {[%emt 0:00:03] Weighted Error Value: White=0.18 (very precise) /Black=0.19 (very precise) .  Mistake:       	White=1     	Black=2      Inaccurate:     	White=2     	Black=3      OK:         	White=6     	Black=8      Best:        	White=1     	---        Strong:       	---       	Black=1} 1/2-1/2

[Event "7th Sharjah Challengers 2024"]
[Site "Sharjah"]
[Date "2024.05.21"]
[Round "8.11"]
[White "Rios Gomez, Cristhian Camilo"]
[Black "Sahakyan, Aleks"]
[Result "1/2-1/2"]
[ECO "D02"]
[WhiteElo "2472"]
[BlackElo "2334"]
[Annotator "TA"]
[PlyCount "43"]
[EventDate "2024.05.13"]
[EventType "swiss"]
[EventCountry "UAE"]
[SourceTitle "playchess.com"]
[Source "ChessBase"]
[SourceQuality "1"]
[TimeControl "5400+30"]

{[%evp 9,43,8,22,24,11,17,45,10,18,28,11,18,36,14,22,-20,-29,-25,-16,-36,-22,-32,-31,-37,-29,-143,-98,-112,-29,-26,-37,-43,-41,-25,-28,-28]} 1. d4 {[%emt 0:00:04]} Nf6 {[%emt 0:00:17]} 2. Nf3 {[%emt 0:00:18]} d5 {[%emt 0:00:08]} 3. Bf4 {[%emt 0:00:11]} c5 {[%emt 0:00:07]} 4. e3 {[%emt 0:00:08]} Nc6 {[%emt 0:00:04]} 5. Nbd2 {[%emt 0:00:08]} Nh5 {[%emt 0:00:06]} 6. dxc5 {[%emt 0:00:25]} Nxf4 {[%emt 0:00:05]} 7. exf4 {[%emt 0:00:08]} a5 {[%emt 0:00:03]} 8. Bb5 {[%emt 0:00:23] White is slightly better.} e6 {[%emt 0:00:24]} 9. Ne5 {[%emt 0:03:05]} Bd7 {[%emt 0:00:17]} 10. Nd3 {[%emt 0:00:10]} Nb4 {[%emt 0:00:10]} 11. Bxd7+ {[%emt 0:01:03]} Qxd7 {[%emt 0:00:02]} 12. Nxb4 {[%emt 0:00:34]} axb4 {[%emt 0:00:07]} 13. Nb3 {[%emt 0:00:08]} Be7 {[%emt 0:06:09][%mdl 1024] Black has compensation.} 14. Qd2 {[%emt 0:11:55]} Bf6 {[%emt 0:05:44]} 15. Nd4 {[%emt 0:00:44]} O-O {[%emt 0:00:30][%cal Bh8f8,Bf8c8,Bc8c5,Bc5c2][%mdl 32]} 16. O-O {[%emt 0:01:53]} Rfc8 {[%emt 0:04:03]} 17. b3 {[%emt 0:09:57]} (17. Qxb4 $11 {remains equal.} Ra4 18. c6 Rxb4 19. cxd7) 17... Qc7 {[%emt 0:10:07]} ({Don't do} 17... Rxc5 18. Qxb4 Rac8 19. Rac1 $15) 18. Qxb4 {[%emt 0:00:32]} Qxc5 {[%emt 0:00:10]} (18... Qxf4 $17 19. c3 Qc7) 19. Qxc5 $11 {[%emt 0:00:11]} Rxc5 {[%emt 0:00:03]} 20. Rfd1 {[%emt 0:00:10]} Bxd4 {[%emt 0:00:59]} 21. Rxd4 {[%emt 0:00:10]} Rxc2 {[%emt 0:00:07]} 22. a4 {[%emt 0:00:48] Weighted Error Value: White=0.21 (precise) /Black=0.16 (very precise) .  Mistake:       	White=1     	Black=1      Inaccurate:     	White=2     	Black=2      OK:         	White=6     	Black=7      Best:        	White=1     	Black=1} 1/2-1/2

[Event "7th Sharjah Challengers 2024"]
[Site "Sharjah"]
[Date "2024.05.21"]
[Round "8.12"]
[White "Kazarian, Anna-Maja"]
[Black "Hesham, Abdelrahman"]
[Result "1-0"]
[ECO "C54"]
[WhiteElo "2182"]
[BlackElo "2394"]
[Annotator "TA"]
[PlyCount "129"]
[EventDate "2024.05.13"]
[EventType "swiss"]
[EventCountry "UAE"]
[SourceTitle "playchess.com"]
[Source "ChessBase"]
[SourceQuality "1"]
[TimeControl "5400+30"]

{[%evp 19,129,23,36,23,36,21,16,5,53,49,49,22,28,18,48,56,58,46,41,29,52,45,93,57,82,77,131,111,116,63,69,88,64,85,74,79,77,0,9,14,0,0,35,23,12,10,33,39,102,87,133,134,134,137,129,0,9,0,135,0,0,0,138,138,137,134,153,137,168,161,377,359,377,376,378,374,568,560,566,559,1025,1002,1587,1709,4173,4173,4710,4727,4133,1125,2121,1997,5197,6067,5863,6069,29976,29977,29976,29957,29979,29980,29981,29980,29984,29982,29986,29987,29987,29988,29989,29990]} 1. e4 {[%emt 0:00:01]} e5 {[%emt 0:02:54]} 2. Nf3 {[%emt 0:00:06]} Nc6 {[%emt 0:00:05]} 3. Bc4 {[%emt 0:00:25]} Bc5 {[%emt 0:00:06]} 4. c3 {[%emt 0:00:18]} Nf6 {[%emt 0:00:06]} 5. d3 {[%emt 0:00:03]} a6 {[%emt 0:00:39]} 6. a4 {[%emt 0:00:29]} d6 {[%emt 0:00:09]} 7. O-O {[%emt 0:00:59]} Ba7 {[%emt 0:00:13]} 8. Be3 {[%emt 0:03:52]} O-O {[%emt 0:00:51]} 9. Bxa7 $1 {[%emt 0:00:17][%mdl 4] now scores much better than the old 9.Nbd2.} Rxa7 {[%emt 0:00:06]} 10. Re1 {[%emt 0:01:15] C54: Giuoco Piano: 4 c3 Nf6, main lines with 5 d4 and 5 d3.} Ne7 {[%emt 0:05:37]} 11. Nbd2 {[%emt 0:01:54]} Ng6 {[%emt 0:00:32]} 12. Nf1 {[%emt 0:06:06]} c6 {[%emt 0:01:32]} 13. Bb3 {[%emt 0:06:28]} Nh5 $146 {[%emt 0:10:05]} (13... Ra8 $11) ({Predecessor:} 13... h6 14. Ng3 Be6 15. d4 Qc8 16. Bc2 Ra8 17. Nf5 Qc7 18. Ne3 Rae8 19. a5 Bc8 {½-½ Li,C (2458)-Ruan,L (2370) All China Games 3rd 2006 (5)}) 14. d4 $14 {[%emt 0:08:45]} Nhf4 {[%emt 0:10:25]} 15. dxe5 {[%emt 0:05:06]} Nxe5 {[%emt 0:00:15]} 16. Nxe5 {[%emt 0:03:08]} dxe5 {[%emt 0:00:09]} (16... Qg5 {feels hotter.} 17. Qf3 dxe5 18. Ne3 h5) 17. Qxd8 {[%emt 0:01:38]} Rxd8 {[%emt 0:00:02]} 18. Rad1 {[%emt 0:00:11]} Re8 {[%emt 0:02:12]} 19. a5 {[%emt 0:06:29]} Kf8 {[%emt 0:04:11]} 20. Ne3 {[%emt 0:01:33]} g6 {[%emt 0:00:11]} (20... Ra8 $14) 21. g3 {[%emt 0:11:44]} Ne6 {[%emt 0:01:47]} 22. Nc4 {[%emt 0:01:25]} Ng5 {[%emt 0:00:50]} (22... Ra8 $142) 23. Rd3 {[%emt 0:03:51]} Bg4 {[%emt 0:01:22] [#]} 24. Bd1 {[%emt 0:10:34]} (24. Ree3 $1 $16) 24... Bxd1 $14 {[%emt 0:04:59]} 25. Rexd1 {[%emt 0:00:04]} Nxe4 {[%emt 0:00:15]} 26. Nb6 {[%emt 0:01:49]} Nc5 {[%emt 0:04:17]} 27. Rd8 {[%emt 0:05:35]} Nb3 {[%emt 0:05:44]} 28. R1d7 {[%emt 0:16:02]} (28. f3 $16) 28... Nxa5 $11 {[%emt 0:01:31]} 29. Rxe8+ {[%emt 0:00:03]} ({Much weaker is} 29. Nc8 Ra8 30. Rxe8+ Kxe8 $17) 29... Kxe8 {[%emt 0:00:06]} 30. Rc7 {[%emt 0:00:06]} h5 {[%emt 0:06:37]} 31. b4 {[%emt 0:02:06]} Nb3 {[%emt 0:00:07]} 32. Nc4 $1 {[%emt 0:00:17]} f6 {[%emt 0:04:12]} 33. Nd6+ {[%emt 0:00:29]} Kd8 {[%emt 0:06:07]} ({Better is} 33... Kf8 $1 $14) 34. Rg7 $16 {[%emt 0:00:05]} Nc1 {[%emt 0:04:24]} (34... g5 $142) 35. Nxb7+ $16 {[%emt 0:01:44]} Kc8 {[%emt 0:00:57]} 36. Nd6+ {[%emt 0:00:03]} Kb8 {[%emt 0:00:04]} 37. Rg8+ {[%emt 0:01:46]} (37. Rxg6 $16 Ne2+ 38. Kg2) 37... Kc7 $11 {[%emt 0:00:07]} 38. Rg7+ {[%emt 0:00:27]} ({White should try} 38. Nc4 $11 Ne2+ 39. Kg2 Nxc3 40. Rg7+ Kb8 41. Rxg6) 38... Kb8 $16 {[%emt 0:00:24]} 39. Rg8+ {[%emt 0:00:34]} ({Only move:} 39. Rxg6 $16 Ne2+ 40. Kg2) 39... Kc7 $11 {[%emt 0:00:05]} 40. Rg7+ {[%emt 0:01:11]} Kxd6 {[%emt 0:00:41]} (40... Kb8 $11 {remains equal.} 41. Rxg6 Ne2+ 42. Kg2 Nxc3) 41. Rxa7 $16 {[%emt 0:00:05]} Ne2+ {[%emt 0:00:04]} 42. Kf1 {[%emt 0:00:21]} Nxc3 {[%emt 0:00:04]} 43. Rxa6 {[%emt 0:00:04]} e4 {[%emt 0:04:45]} 44. Ke1 {[%emt 0:00:41]} f5 $2 {[%emt 0:03:45]} (44... Kd7 45. Ra7+ Ke6) 45. Kd2 $18 {[%emt 0:00:34]} Nb5 {[%emt 0:03:37]} 46. Ra8 {[%emt 0:00:47]} Nd4 {[%emt 0:03:35]} 47. h4 {[%emt 0:00:04]} Ke5 {[%emt 0:10:19]} (47... Kd7 $142 48. Rf8 Nf3+ 49. Ke3 Ke7) 48. Rg8 $18 {[%emt 0:00:39]} Kf6 {[%emt 0:01:07]} 49. Kc3 {[%emt 0:00:06]} Ne2+ {[%emt 0:01:31]} 50. Kc4 {[%emt 0:00:43]} f4 {[%emt 0:00:47]} 51. gxf4 {[%emt 0:00:57]} Nxf4 {[%emt 0:00:02]} 52. Rc8 {[%emt 0:00:15]} Nd3 {[%emt 0:01:21]} 53. Rxc6+ {[%emt 0:00:14]} Kf5 {[%emt 0:00:04]} 54. Rc8 {[%emt 0:02:00]} (54. b5 $142 Nxf2 55. b6) 54... g5 {[%emt 0:00:25]} 55. Rf8+ {[%emt 0:00:43]} Kg4 {[%emt 0:00:33]} 56. hxg5 {[%emt 0:00:03]} h4 {[%emt 0:00:33]} 57. f3+ {[%emt 0:00:35]} Kxg5 {[%emt 0:00:56]} 58. fxe4 {[%emt 0:00:04]} Ne5+ {[%emt 0:00:07]} 59. Kd5 {[%emt 0:00:20]} Nd7 {[%emt 0:00:07]} 60. Rg8+ {[%emt 0:00:26]} Kf4 {[%emt 0:00:15]} 61. Rh8 {[%emt 0:00:34]} Nf6+ {[%emt 0:00:11]} 62. Kd4 {[%emt 0:00:06]} Kg4 {[%emt 0:00:13]} 63. e5 {[%emt 0:00:07]} Nh5 {[%emt 0:00:06]} 64. e6 {[%emt 0:00:25]} h3 {[%emt 0:00:17]} 65. Rxh5 {[%emt 0:00:20]} 1-0